[Event "Titled Tuesday Blitz November 29 Early 2022"]
[White "Rangel, Daniel"]
[Black "Trost, Edvin"]
[WhiteFideId "2124475"]
[BlackFideId "1729519"]
[WhiteElo "2225"]
[BlackElo "2247"]
[Result "0-1"]
[Round "08"]
[TimeControl "180+1"]
[Date "2022.11.30"]
[WhiteClock "0:00:02"]
[BlackClock "0:00:31"]

1. d4 {[%clk 0:03:00]}  Nf6 {[%clk 0:02:39]} 2. c4 {[%clk 0:03:00]}  e6 {[%clk 0:02:36]} 3. Nc3 {[%clk 0:03:00]}  d5 {[%clk 0:02:36]} 4. cxd5 {[%clk 0:02:59]}  exd5 {[%clk 0:02:36]} 5. Bf4 {[%clk 0:02:59]}  Bd6 {[%clk 0:02:35]} 6. e3 {[%clk 0:02:59]}  Bxf4 {[%clk 0:02:33]} 7. exf4 {[%clk 0:03:00]}  O-O {[%clk 0:02:33]} 8. Bd3 {[%clk 0:02:59]}  Re8+ {[%clk 0:02:33]} 9. Nge2 {[%clk 0:03:00]}  Nc6 {[%clk 0:02:31]} 10. O-O {[%clk 0:02:58]}  Ne7 {[%clk 0:02:31]} 11. Ng3 {[%clk 0:02:52]}  c6 {[%clk 0:02:31]} 12. Rb1 {[%clk 0:02:45]}  Ng6 {[%clk 0:02:29]} 13. Qd2 {[%clk 0:02:42]}  Qd6 {[%clk 0:02:29]} 14. Bxg6 {[%clk 0:02:31]}  hxg6 {[%clk 0:02:29]} 15. Rfe1 {[%clk 0:02:31]}  Bd7 {[%clk 0:02:27]} 16. h3 {[%clk 0:02:29]}  Bf5 {[%clk 0:02:23]} 17. Nxf5 {[%clk 0:02:27]}  gxf5 {[%clk 0:02:24]} 18. f3 {[%clk 0:02:18]}  g6 {[%clk 0:02:24]} 19. a3 {[%clk 0:02:13]}  Kg7 {[%clk 0:02:23]} 20. Re5 {[%clk 0:02:08]}  Nd7 {[%clk 0:02:22]} 21. Ree1 {[%clk 0:02:08]}  a6 {[%clk 0:02:17]} 22. Rxe8 {[%clk 0:02:01]}  Rxe8 {[%clk 0:02:06]} 23. Kf2 {[%clk 0:01:50]}  Nf8 {[%clk 0:02:02]} 24. g3 {[%clk 0:01:26]}  Qf6 {[%clk 0:01:54]} 25. Re1 {[%clk 0:01:10]}  Rxe1 {[%clk 0:01:47]} 26. Kxe1 {[%clk 0:01:11]}  Ne6 {[%clk 0:01:47]} 27. Ne2 {[%clk 0:01:11]}  Qd8 {[%clk 0:01:43]} 28. b4 {[%clk 0:01:03]}  Qb6 {[%clk 0:01:36]} 29. g4 {[%clk 0:00:57]}  fxg4 {[%clk 0:01:32]} 30. hxg4 {[%clk 0:00:43]}  Qd8 {[%clk 0:01:32]} 31. Qe3 {[%clk 0:00:30]}  Qh4+ {[%clk 0:01:30]} 32. Kd2 {[%clk 0:00:30]}  Kg8 {[%clk 0:01:25]} 33. Qe5 {[%clk 0:00:23]}  Kh7 {[%clk 0:01:00]} 34. Ke3 {[%clk 0:00:17]}  Qh1 {[%clk 0:00:54]} 35. f5 {[%clk 0:00:16]}  gxf5 {[%clk 0:00:54]} 36. gxf5 {[%clk 0:00:12]}  Ng5 {[%clk 0:00:50]} 37. Qg3 {[%clk 0:00:11]}  Qh6 {[%clk 0:00:49]} 38. f4 {[%clk 0:00:09]}  Ne4 {[%clk 0:00:47]} 39. Qg4 {[%clk 0:00:08]}  a5 {[%clk 0:00:46]} 40. Ng3 {[%clk 0:00:07]}  Nxg3 {[%clk 0:00:41]} 41. Qxg3 {[%clk 0:00:07]}  axb4 {[%clk 0:00:42]} 42. axb4 {[%clk 0:00:08]}  Qh1 {[%clk 0:00:41]} 43. Qg5 {[%clk 0:00:07]}  Qe4+ {[%clk 0:00:42]} 44. Kf2 {[%clk 0:00:06]}  Qxd4+ {[%clk 0:00:42]} 45. Kg3 {[%clk 0:00:06]}  Qg7 {[%clk 0:00:41]} 46. Kg4 {[%clk 0:00:06]}  f6 {[%clk 0:00:36]} 47. Kh5 {[%clk 0:00:01]}  fxg5 {[%clk 0:00:34]} 48. fxg5 {[%clk 0:00:02]}  Qe5 {[%clk 0:00:31]} 0-1


[Site "https://www.chess.com"]

[Event "Titled Tuesday Blitz November 29 Early 2022"]
[White "Rose, Felix"]
[Black "Levitan, Caleb Levi"]
[WhiteFideId "5105722"]
[BlackFideId "14332620"]
[WhiteElo "2039"]
[BlackElo "1963"]
[Result "1-0"]
[Round "08"]
[TimeControl "180+1"]
[Date "2022.11.30"]
[WhiteClock "0:00:24"]
[BlackClock "0:00:02"]

1. e4 {[%clk 0:03:00]}  c5 {[%clk 0:02:58]} 2. Nf3 {[%clk 0:03:00]}  e6 {[%clk 0:02:57]} 3. d4 {[%clk 0:03:01]}  cxd4 {[%clk 0:02:57]} 4. Nxd4 {[%clk 0:03:02]}  a6 {[%clk 0:02:54]} 5. Nc3 {[%clk 0:03:00]}  b5 {[%clk 0:02:54]} 6. Bd3 {[%clk 0:03:00]}  Bb7 {[%clk 0:02:53]} 7. O-O {[%clk 0:03:00]}  Nc6 {[%clk 0:02:53]} 8. Nxc6 {[%clk 0:02:59]}  Bxc6 {[%clk 0:02:53]} 9. Qe2 {[%clk 0:02:57]}  Ne7 {[%clk 0:02:52]} 10. Bd2 {[%clk 0:02:50]}  Ng6 {[%clk 0:02:51]} 11. a4 {[%clk 0:02:45]}  b4 {[%clk 0:02:48]} 12. Nd5 {[%clk 0:02:42]}  Qb8 {[%clk 0:02:29]} 13. a5 {[%clk 0:02:32]}  Bd6 {[%clk 0:02:25]} 14. h3 {[%clk 0:02:22]}  O-O {[%clk 0:02:01]} 15. Nb6 {[%clk 0:02:20]}  Ra7 {[%clk 0:02:01]} 16. Bxa6 {[%clk 0:02:15]}  Bc5 {[%clk 0:01:54]} 17. Bd3 {[%clk 0:01:32]}  Bxb6 {[%clk 0:01:44]} 18. axb6 {[%clk 0:01:31]}  Rxa1 {[%clk 0:01:38]} 19. Rxa1 {[%clk 0:01:30]}  Qxb6 {[%clk 0:01:38]} 20. b3 {[%clk 0:01:07]}  d5 {[%clk 0:01:20]} 21. exd5 {[%clk 0:01:01]}  Bxd5 {[%clk 0:01:18]} 22. Qg4 {[%clk 0:00:55]}  Rb8 {[%clk 0:00:53]} 23. Ra4 {[%clk 0:00:37]}  Ne5 {[%clk 0:00:26]} 24. Bxh7+ {[%clk 0:00:36]}  Kxh7 {[%clk 0:00:23]} 25. Qh5+ {[%clk 0:00:36]}  Kg8 {[%clk 0:00:23]} 26. Qxe5 {[%clk 0:00:37]}  Rc8 {[%clk 0:00:15]} 27. Rxb4 {[%clk 0:00:32]}  Qc5 {[%clk 0:00:12]} 28. c4 {[%clk 0:00:26]}  Be4 {[%clk 0:00:01]} 29. Qxc5 {[%clk 0:00:24]}  Rd8 {[%clk 0:00:02]} 1-0


[Site "https://www.chess.com"]

[Event "Titled Tuesday Blitz November 29 Early 2022"]
[White "Rosen, Eric"]
[Black "Yuan, Qingyu"]
[WhiteFideId "2032562"]
[BlackFideId "8609772"]
[WhiteElo "2362"]
[BlackElo "2359"]
[Result "1-0"]
[Round "08"]
[TimeControl "180+1"]
[Date "2022.11.30"]
[WhiteClock "0:00:05"]
[BlackClock "0:00:06"]

1. d4 {[%clk 0:03:00]}  Nf6 {[%clk 0:02:59]} 2. Bf4 {[%clk 0:03:00]}  d5 {[%clk 0:02:58]} 3. e3 {[%clk 0:03:01]}  c5 {[%clk 0:02:58]} 4. Nf3 {[%clk 0:03:01]}  Nc6 {[%clk 0:02:57]} 5. Nbd2 {[%clk 0:03:02]}  Bf5 {[%clk 0:02:51]} 6. dxc5 {[%clk 0:03:01]}  e6 {[%clk 0:02:51]} 7. Nd4 {[%clk 0:03:02]}  Bg4 {[%clk 0:02:36]} 8. f3 {[%clk 0:02:57]}  Bh5 {[%clk 0:02:35]} 9. Bb5 {[%clk 0:02:56]}  Qc8 {[%clk 0:02:14]} 10. b4 {[%clk 0:02:47]}  Be7 {[%clk 0:02:13]} 11. h4 {[%clk 0:02:38]}  h6 {[%clk 0:02:01]} 12. Nxc6 {[%clk 0:02:35]}  bxc6 {[%clk 0:02:00]} 13. Bd3 {[%clk 0:02:36]}  Nd7 {[%clk 0:01:52]} 14. g4 {[%clk 0:02:34]}  e5 {[%clk 0:01:49]} 15. Bg3 {[%clk 0:02:22]}  Bg6 {[%clk 0:01:49]} 16. Bxg6 {[%clk 0:02:10]}  fxg6 {[%clk 0:01:50]} 17. Qe2 {[%clk 0:02:10]}  O-O {[%clk 0:01:30]} 18. O-O {[%clk 0:02:10]}  a5 {[%clk 0:01:21]} 19. a3 {[%clk 0:02:10]}  Qd8 {[%clk 0:01:13]} 20. Qh2 {[%clk 0:02:09]}  Bf6 {[%clk 0:01:12]} 21. e4 {[%clk 0:02:04]}  d4 {[%clk 0:01:01]} 22. Nc4 {[%clk 0:01:59]}  axb4 {[%clk 0:00:59]} 23. axb4 {[%clk 0:02:00]}  Qe7 {[%clk 0:00:59]} 24. Nd6 {[%clk 0:01:40]}  Qe6 {[%clk 0:00:51]} 25. Qe2 {[%clk 0:01:33]}  Rfb8 {[%clk 0:00:40]} 26. Rxa8 {[%clk 0:01:21]}  Rxa8 {[%clk 0:00:40]} 27. Qc4 {[%clk 0:01:18]}  Qxc4 {[%clk 0:00:40]} 28. Nxc4 {[%clk 0:01:19]}  Ra2 {[%clk 0:00:29]} 29. Rc1 {[%clk 0:01:16]}  Kf7 {[%clk 0:00:19]} 30. Kf1 {[%clk 0:01:02]}  Ke6 {[%clk 0:00:18]} 31. Ke2 {[%clk 0:01:02]}  Bd8 {[%clk 0:00:15]} 32. Kd3 {[%clk 0:01:01]}  Bc7 {[%clk 0:00:12]} 33. Rb1 {[%clk 0:01:00]}  Ra4 {[%clk 0:00:07]} 34. Be1 {[%clk 0:00:44]}  Ra8 {[%clk 0:00:06]} 35. Bd2 {[%clk 0:00:43]}  Ra2 {[%clk 0:00:06]} 36. Rf1 {[%clk 0:00:34]}  Ra8 {[%clk 0:00:05]} 37. Ke2 {[%clk 0:00:24]}  Ra2 {[%clk 0:00:04]} 38. Rc1 {[%clk 0:00:24]}  Ra4 {[%clk 0:00:04]} 39. Kd3 {[%clk 0:00:23]}  Ra2 {[%clk 0:00:05]} 40. Rh1 {[%clk 0:00:21]}  Ra4 {[%clk 0:00:03]} 41. Rf1 {[%clk 0:00:21]}  Ra2 {[%clk 0:00:01]} 42. f4 {[%clk 0:00:21]}  exf4 {[%clk 0:00:02]} 43. Bxf4 {[%clk 0:00:20]}  Bxf4 {[%clk 0:00:02]} 44. Rxf4 {[%clk 0:00:20]}  Ne5+ {[%clk 0:00:03]} 45. Nxe5 {[%clk 0:00:19]}  Kxe5 {[%clk 0:00:04]} 46. Rf7 {[%clk 0:00:19]}  Ra3+ {[%clk 0:00:04]} 47. Kd2 {[%clk 0:00:19]}  Kxe4 {[%clk 0:00:04]} 48. Rxg7 {[%clk 0:00:15]}  Rh3 {[%clk 0:00:04]} 49. Rxg6 {[%clk 0:00:13]}  Rh2+ {[%clk 0:00:04]} 50. Kc1 {[%clk 0:00:13]}  Kd5 {[%clk 0:00:02]} 51. Rxh6 {[%clk 0:00:09]}  Kc4 {[%clk 0:00:03]} 52. Rxc6 {[%clk 0:00:07]}  Kc3 {[%clk 0:00:03]} 53. Kd1 {[%clk 0:00:05]}  Rh1+ {[%clk 0:00:03]} 54. Ke2 {[%clk 0:00:05]}  Kxc2 {[%clk 0:00:04]} 55. Rd6 {[%clk 0:00:05]}  d3+ {[%clk 0:00:03]} 56. Ke3 {[%clk 0:00:02]}  Rh3+ {[%clk 0:00:02]} 57. Kf4 {[%clk 0:00:02]}  Rxh4 {[%clk 0:00:03]} 58. c6 {[%clk 0:00:02]}  Rh3 {[%clk 0:00:02]} 59. c7 {[%clk 0:00:02]}  Rh8 {[%clk 0:00:03]} 60. b5 {[%clk 0:00:02]}  d2 {[%clk 0:00:02]} 61. b6 {[%clk 0:00:02]}  Rh6 {[%clk 0:00:02]} 62. Rxd2+ {[%clk 0:00:02]}  Kxd2 {[%clk 0:00:02]} 63. c8=Q {[%clk 0:00:03]}  Rf6+ {[%clk 0:00:03]} 64. Ke5 {[%clk 0:00:03]}  Rf3 {[%clk 0:00:03]} 65. Qd8+ {[%clk 0:00:03]}  Ke2 {[%clk 0:00:04]} 66. b7 {[%clk 0:00:03]}  Re3+ {[%clk 0:00:04]} 67. Kf4 {[%clk 0:00:03]}  Rf3+ {[%clk 0:00:04]} 68. Kg5 {[%clk 0:00:04]}  Rd3 {[%clk 0:00:05]} 69. Qe7+ {[%clk 0:00:04]}  Kf2 {[%clk 0:00:05]} 70. Qf6+ {[%clk 0:00:04]}  Rf3 {[%clk 0:00:05]} 71. Qe5 {[%clk 0:00:04]}  Re3 {[%clk 0:00:05]} 72. Qf4+ {[%clk 0:00:05]}  Rf3 {[%clk 0:00:06]} 73. Qxf3+ {[%clk 0:00:05]} 1-0


[Site "https://www.chess.com"]

[Event "Titled Tuesday Blitz November 29 Early 2022"]
[White "Rustemov, Alexander"]
[Black "Sellitti, Federico"]
[WhiteFideId "4119002"]
[BlackFideId "821829"]
[WhiteElo "2866"]
[BlackElo "2619"]
[Result "1-0"]
[Round "08"]
[TimeControl "180+1"]
[Date "2022.11.30"]
[WhiteClock "0:00:05"]
[BlackClock "0:00:05"]

1. d4 {[%clk 0:03:00]}  d5 {[%clk 0:02:59]} 2. c4 {[%clk 0:03:01]}  e5 {[%clk 0:03:00]} 3. dxe5 {[%clk 0:02:59]}  d4 {[%clk 0:03:01]} 4. Nf3 {[%clk 0:02:58]}  Nc6 {[%clk 0:03:01]} 5. a3 {[%clk 0:02:58]}  Bg4 {[%clk 0:02:58]} 6. Nbd2 {[%clk 0:02:54]}  Nge7 {[%clk 0:02:58]} 7. b4 {[%clk 0:02:53]}  Ng6 {[%clk 0:02:57]} 8. Bb2 {[%clk 0:02:49]}  Ngxe5 {[%clk 0:02:53]} 9. b5 {[%clk 0:02:47]}  Bxf3 {[%clk 0:02:45]} 10. exf3 {[%clk 0:02:44]}  Qe7 {[%clk 0:02:40]} 11. Ne4 {[%clk 0:02:38]}  f5 {[%clk 0:02:28]} 12. bxc6 {[%clk 0:02:36]}  fxe4 {[%clk 0:02:27]} 13. cxb7 {[%clk 0:02:09]}  Rd8 {[%clk 0:02:26]} 14. Qxd4 {[%clk 0:02:09]}  Rxd4 {[%clk 0:01:53]} 15. b8=Q+ {[%clk 0:02:07]}  Rd8 {[%clk 0:01:53]} 16. Qb5+ {[%clk 0:02:07]}  Nd7 {[%clk 0:01:51]} 17. O-O-O {[%clk 0:01:47]}  Qc5 {[%clk 0:01:39]} 18. fxe4 {[%clk 0:01:37]}  Qxf2 {[%clk 0:01:36]} 19. Qh5+ {[%clk 0:01:28]}  g6 {[%clk 0:01:25]} 20. Qh3 {[%clk 0:01:25]}  Be7 {[%clk 0:01:02]} 21. Bd3 {[%clk 0:01:06]}  Nc5 {[%clk 0:00:58]} 22. Bc2 {[%clk 0:01:00]}  Bg5+ {[%clk 0:00:31]} 23. Kb1 {[%clk 0:01:00]}  Rb8 {[%clk 0:00:31]} 24. Qc3 {[%clk 0:00:53]}  Rf8 {[%clk 0:00:20]} 25. Rd5 {[%clk 0:00:40]}  Qxg2 {[%clk 0:00:12]} 26. Rhd1 {[%clk 0:00:39]}  Bf6 {[%clk 0:00:10]} 27. e5 {[%clk 0:00:34]}  Be7 {[%clk 0:00:11]} 28. R5d2 {[%clk 0:00:26]}  Rf2 {[%clk 0:00:10]} 29. Ka2 {[%clk 0:00:23]}  Rd8 {[%clk 0:00:07]} 30. Rxd8+ {[%clk 0:00:20]}  Bxd8 {[%clk 0:00:07]} 31. Kb1 {[%clk 0:00:14]}  Be7 {[%clk 0:00:05]} 32. e6 {[%clk 0:00:14]}  Rf1 {[%clk 0:00:04]} 33. Qh8+ {[%clk 0:00:13]}  Bf8 {[%clk 0:00:03]} 34. Qd4 {[%clk 0:00:10]}  Rxd1+ {[%clk 0:00:03]} 35. Bxd1 {[%clk 0:00:10]}  Qc6 {[%clk 0:00:04]} 36. Bg4 {[%clk 0:00:07]}  Nxe6 {[%clk 0:00:03]} 37. Qf6 {[%clk 0:00:05]}  Qe4+ {[%clk 0:00:01]} 38. Ka1 {[%clk 0:00:04]}  Kd7 {[%clk 0:00:02]} 39. Qf7+ {[%clk 0:00:03]}  Kd6 {[%clk 0:00:02]} 40. Bxe6 {[%clk 0:00:02]}  Qxe6 {[%clk 0:00:03]} 41. Qxf8+ {[%clk 0:00:03]}  Kd7 {[%clk 0:00:02]} 42. Qg7+ {[%clk 0:00:02]}  Kc6 {[%clk 0:00:03]} 43. Qd4 {[%clk 0:00:03]}  Qe1+ {[%clk 0:00:03]} 44. Ka2 {[%clk 0:00:04]}  Qe6 {[%clk 0:00:03]} 45. Qd5+ {[%clk 0:00:04]}  Qxd5 {[%clk 0:00:03]} 46. cxd5+ {[%clk 0:00:05]}  Kd6 {[%clk 0:00:04]} 47. Kb3 {[%clk 0:00:05]}  Kxd5 {[%clk 0:00:05]} 48. a4 {[%clk 0:00:05]}  c5 {[%clk 0:00:05]} 49. Kc2 {[%clk 0:00:06]}  g5 {[%clk 0:00:05]} 50. Bf6 {[%clk 0:00:05]}  g4 {[%clk 0:00:05]} 51. Kd3 {[%clk 0:00:05]}  c4+ {[%clk 0:00:05]} 52. Kc3 {[%clk 0:00:06]}  h5 {[%clk 0:00:06]} 53. Bh4 {[%clk 0:00:06]}  Ke4 {[%clk 0:00:06]} 54. Kxc4 {[%clk 0:00:06]}  Kf3 {[%clk 0:00:06]} 55. Kb5 {[%clk 0:00:06]}  Kg2 {[%clk 0:00:06]} 56. Bg3 {[%clk 0:00:06]}  Kh3 {[%clk 0:00:07]} 57. Ka6 {[%clk 0:00:06]}  h4 {[%clk 0:00:07]} 58. Bc7 {[%clk 0:00:06]}  Kg2 {[%clk 0:00:05]} 59. Kxa7 {[%clk 0:00:05]}  g3 {[%clk 0:00:05]} 60. Bxg3 {[%clk 0:00:05]} 1-0


[Site "https://www.chess.com"]

[Event "Titled Tuesday Blitz November 29 Early 2022"]
[White "Sadhwani, Raunak"]
[Black "Ozen, Bahadir"]
[WhiteFideId "35093487"]
[BlackFideId "6337058"]
[WhiteElo "2656"]
[BlackElo "2503"]
[Result "1-0"]
[Round "08"]
[TimeControl "180+1"]
[Date "2022.11.30"]
[WhiteClock "0:01:35"]
[BlackClock "0:00:39"]

1. c4 {[%clk 0:03:00]}  d6 {[%clk 0:02:56]} 2. Nc3 {[%clk 0:02:57]}  Nf6 {[%clk 0:02:55]} 3. d4 {[%clk 0:02:57]}  Nbd7 {[%clk 0:02:54]} 4. e4 {[%clk 0:02:57]}  e5 {[%clk 0:02:55]} 5. Nf3 {[%clk 0:02:58]}  c6 {[%clk 0:02:55]} 6. Be2 {[%clk 0:02:58]}  Be7 {[%clk 0:02:55]} 7. O-O {[%clk 0:02:58]}  O-O {[%clk 0:02:56]} 8. Re1 {[%clk 0:02:54]}  a6 {[%clk 0:02:56]} 9. d5 {[%clk 0:02:48]}  cxd5 {[%clk 0:02:55]} 10. cxd5 {[%clk 0:02:48]}  b5 {[%clk 0:02:54]} 11. a3 {[%clk 0:02:48]}  Nb6 {[%clk 0:02:40]} 12. b3 {[%clk 0:02:43]}  Bd7 {[%clk 0:02:39]} 13. Bb2 {[%clk 0:02:39]}  Qb8 {[%clk 0:02:32]} 14. Nd2 {[%clk 0:02:33]}  Rc8 {[%clk 0:02:32]} 15. Rc1 {[%clk 0:02:32]}  Ra7 {[%clk 0:02:30]} 16. Bd3 {[%clk 0:02:26]}  Rac7 {[%clk 0:02:29]} 17. Qe2 {[%clk 0:02:26]}  g6 {[%clk 0:02:28]} 18. Na2 {[%clk 0:02:26]}  Rxc1 {[%clk 0:02:25]} 19. Rxc1 {[%clk 0:02:27]}  Rxc1+ {[%clk 0:02:25]} 20. Bxc1 {[%clk 0:02:28]}  Qc7 {[%clk 0:02:25]} 21. Bb2 {[%clk 0:02:28]}  Nh5 {[%clk 0:02:25]} 22. g3 {[%clk 0:02:28]}  Qc8 {[%clk 0:01:42]} 23. Qe3 {[%clk 0:02:16]}  Bd8 {[%clk 0:01:40]} 24. Be2 {[%clk 0:02:05]}  Qc2 {[%clk 0:01:36]} 25. Qc3 {[%clk 0:02:05]}  Qxc3 {[%clk 0:01:34]} 26. Bxc3 {[%clk 0:02:06]}  Na8 {[%clk 0:01:14]} 27. Nb4 {[%clk 0:01:52]}  Bc8 {[%clk 0:01:10]} 28. Nc6 {[%clk 0:01:50]}  Bf6 {[%clk 0:01:01]} 29. Bb4 {[%clk 0:01:47]}  Ng7 {[%clk 0:00:57]} 30. Bxd6 {[%clk 0:01:47]}  Ne8 {[%clk 0:00:57]} 31. Bxe5 {[%clk 0:01:47]}  Bxe5 {[%clk 0:00:57]} 32. Nxe5 {[%clk 0:01:48]}  Nb6 {[%clk 0:00:55]} 33. Nc6 {[%clk 0:01:48]}  Kf8 {[%clk 0:00:54]} 34. f3 {[%clk 0:01:47]}  f6 {[%clk 0:00:54]} 35. Kf2 {[%clk 0:01:47]}  Nd6 {[%clk 0:00:54]} 36. Ke3 {[%clk 0:01:47]}  Ke8 {[%clk 0:00:51]} 37. Kd4 {[%clk 0:01:47]}  Kd7 {[%clk 0:00:50]} 38. f4 {[%clk 0:01:41]}  Bb7 {[%clk 0:00:51]} 39. Na5 {[%clk 0:01:41]}  Ba8 {[%clk 0:00:48]} 40. Bf3 {[%clk 0:01:39]}  Kc7 {[%clk 0:00:39]} 41. g4 {[%clk 0:01:35]} 1-0


[Site "https://www.chess.com"]

[Event "Titled Tuesday Blitz November 29 Early 2022"]
[White "Sanchez, Robert"]
[Black "Adnan, Habib"]
[WhiteFideId "2034360"]
[BlackFideId "11202270"]
[WhiteElo "2323"]
[BlackElo "2110"]
[Result "1-0"]
[Round "08"]
[TimeControl "180+1"]
[Date "2022.11.30"]
[WhiteClock "0:00:36"]
[BlackClock "0:00:21"]

1. e4 {[%clk 0:03:00]}  d5 {[%clk 0:02:56]} 2. exd5 {[%clk 0:03:00]}  Nf6 {[%clk 0:02:56]} 3. Nc3 {[%clk 0:03:01]}  Nxd5 {[%clk 0:02:56]} 4. Nf3 {[%clk 0:03:01]}  Bf5 {[%clk 0:02:50]} 5. Bc4 {[%clk 0:02:59]}  e6 {[%clk 0:02:49]} 6. O-O {[%clk 0:02:58]}  Be7 {[%clk 0:02:47]} 7. Re1 {[%clk 0:02:56]}  c6 {[%clk 0:02:46]} 8. d4 {[%clk 0:02:56]}  O-O {[%clk 0:02:40]} 9. h3 {[%clk 0:02:56]}  Nd7 {[%clk 0:02:39]} 10. Ne2 {[%clk 0:02:56]}  N7f6 {[%clk 0:02:37]} 11. Ng3 {[%clk 0:02:55]}  Bg6 {[%clk 0:02:37]} 12. c3 {[%clk 0:02:56]}  Qc7 {[%clk 0:02:35]} 13. Ne5 {[%clk 0:02:56]}  Rfd8 {[%clk 0:02:31]} 14. h4 {[%clk 0:02:56]}  Bf5 {[%clk 0:02:11]} 15. Nxf5 {[%clk 0:02:54]}  exf5 {[%clk 0:02:11]} 16. Qf3 {[%clk 0:02:49]}  g6 {[%clk 0:02:11]} 17. Bg5 {[%clk 0:02:44]}  Ne4 {[%clk 0:01:58]} 18. Bh6 {[%clk 0:02:10]}  Nd2 {[%clk 0:01:50]} 19. Bxd2 {[%clk 0:02:09]}  Bf6 {[%clk 0:01:45]} 20. h5 {[%clk 0:02:04]}  Rd6 {[%clk 0:01:41]} 21. hxg6 {[%clk 0:02:03]}  hxg6 {[%clk 0:01:41]} 22. Bf4 {[%clk 0:01:59]}  Nxf4 {[%clk 0:01:41]} 23. Qxf4 {[%clk 0:01:53]}  Rd7 {[%clk 0:01:37]} 24. Qg3 {[%clk 0:01:44]}  Bxe5 {[%clk 0:01:27]} 25. Rxe5 {[%clk 0:01:45]}  Kg7 {[%clk 0:01:25]} 26. Rae1 {[%clk 0:01:44]}  Rad8 {[%clk 0:01:22]} 27. Bb3 {[%clk 0:01:34]}  Qd6 {[%clk 0:01:21]} 28. Qe3 {[%clk 0:01:29]}  Qf6 {[%clk 0:01:18]} 29. Re7 {[%clk 0:01:24]}  f4 {[%clk 0:01:13]} 30. Qe4 {[%clk 0:01:21]}  f3 {[%clk 0:01:12]} 31. Rxd7 {[%clk 0:01:20]}  Rxd7 {[%clk 0:01:11]} 32. Qxf3 {[%clk 0:01:20]}  Qg5 {[%clk 0:01:10]} 33. Qe3 {[%clk 0:01:19]}  Qf5 {[%clk 0:01:05]} 34. Qe5+ {[%clk 0:01:16]}  Qf6 {[%clk 0:01:05]} 35. Qxf6+ {[%clk 0:01:16]}  Kxf6 {[%clk 0:01:06]} 36. f4 {[%clk 0:01:16]}  Kf5 {[%clk 0:01:05]} 37. g3 {[%clk 0:01:16]}  Kg4 {[%clk 0:01:03]} 38. Kg2 {[%clk 0:01:16]}  Kf5 {[%clk 0:00:53]} 39. Re5+ {[%clk 0:01:15]}  Kf6 {[%clk 0:00:53]} 40. g4 {[%clk 0:01:15]}  b6 {[%clk 0:00:50]} 41. g5+ {[%clk 0:01:15]}  Kg7 {[%clk 0:00:51]} 42. Kf3 {[%clk 0:01:15]}  a5 {[%clk 0:00:49]} 43. a4 {[%clk 0:01:10]}  Rc7 {[%clk 0:00:40]} 44. Ke4 {[%clk 0:01:09]}  f5+ {[%clk 0:00:37]} 45. Kd3 {[%clk 0:01:05]}  Rc8 {[%clk 0:00:23]} 46. Re7+ {[%clk 0:01:04]}  Kf8 {[%clk 0:00:23]} 47. Rh7 {[%clk 0:01:04]}  Re8 {[%clk 0:00:21]} 48. Rh8+ {[%clk 0:01:04]}  Ke7 {[%clk 0:00:21]} 49. Rxe8+ {[%clk 0:01:05]}  Kxe8 {[%clk 0:00:22]} 50. d5 {[%clk 0:01:04]}  c5 {[%clk 0:00:21]} 51. Kc4 {[%clk 0:01:04]}  Ke7 {[%clk 0:00:22]} 52. Kb5 {[%clk 0:01:04]}  Kd6 {[%clk 0:00:23]} 53. c4 {[%clk 0:01:04]}  Kc7 {[%clk 0:00:23]} 54. Bc2 {[%clk 0:01:02]}  Kd6 {[%clk 0:00:22]} 55. Kxb6 {[%clk 0:01:01]}  Kd7 {[%clk 0:00:22]} 56. Kxc5 {[%clk 0:01:01]}  Kc7 {[%clk 0:00:21]} 57. Bd3 {[%clk 0:00:59]}  Kd7 {[%clk 0:00:22]} 58. b3 {[%clk 0:00:59]}  Kc7 {[%clk 0:00:22]} 59. d6+ {[%clk 0:00:57]}  Kd7 {[%clk 0:00:22]} 60. Kd5 {[%clk 0:00:58]}  Kd8 {[%clk 0:00:19]} 61. c5 {[%clk 0:00:58]}  Kd7 {[%clk 0:00:19]} 62. c6+ {[%clk 0:00:56]}  Kd8 {[%clk 0:00:19]} 63. Kc5 {[%clk 0:00:56]}  Kc8 {[%clk 0:00:19]} 64. Kb5 {[%clk 0:00:57]}  Kd8 {[%clk 0:00:19]} 65. Kxa5 {[%clk 0:00:57]}  Kc8 {[%clk 0:00:20]} 66. Kb6 {[%clk 0:00:57]}  Kd8 {[%clk 0:00:20]} 67. a5 {[%clk 0:00:58]}  Kc8 {[%clk 0:00:20]} 68. a6 {[%clk 0:00:58]}  Kb8 {[%clk 0:00:20]} 69. b4 {[%clk 0:00:57]}  Ka8 {[%clk 0:00:20]} 70. b5 {[%clk 0:00:57]}  Kb8 {[%clk 0:00:21]} 71. Kc5 {[%clk 0:00:57]}  Ka7 {[%clk 0:00:21]} 72. b6+ {[%clk 0:00:55]}  Kb8 {[%clk 0:00:21]} 73. Kd5 {[%clk 0:00:56]}  Ka8 {[%clk 0:00:21]} 74. Ke6 {[%clk 0:00:56]}  Kb8 {[%clk 0:00:22]} 75. Kf6 {[%clk 0:00:57]}  Kc8 {[%clk 0:00:22]} 76. Kxg6 {[%clk 0:00:57]}  Kd8 {[%clk 0:00:20]} 77. Kf6 {[%clk 0:00:56]}  Kc8 {[%clk 0:00:20]} 78. g6 {[%clk 0:00:57]}  Kd8 {[%clk 0:00:20]} 79. g7 {[%clk 0:00:57]}  Ke8 {[%clk 0:00:20]} 80. g8=N {[%clk 0:00:55]}  Kd8 {[%clk 0:00:20]} 81. Nh6 {[%clk 0:00:55]}  Kc8 {[%clk 0:00:18]} 82. Nxf5 {[%clk 0:00:55]}  Kb8 {[%clk 0:00:18]} 83. Nd4 {[%clk 0:00:55]}  Ka8 {[%clk 0:00:17]} 84. Nf3 {[%clk 0:00:55]}  Kb8 {[%clk 0:00:17]} 85. Ng1 {[%clk 0:00:56]}  Kc8 {[%clk 0:00:17]} 86. Bf1 {[%clk 0:00:56]}  Kb8 {[%clk 0:00:18]} 87. Ke6 {[%clk 0:00:57]}  Kc8 {[%clk 0:00:18]} 88. f5 {[%clk 0:00:57]}  Kd8 {[%clk 0:00:19]} 89. f6 {[%clk 0:00:58]}  Ke8 {[%clk 0:00:19]} 90. b7 {[%clk 0:00:52]}  Kf8 {[%clk 0:00:19]} 91. b8=B {[%clk 0:00:49]}  Ke8 {[%clk 0:00:18]} 92. Bc7 {[%clk 0:00:50]}  Kf8 {[%clk 0:00:18]} 93. Ba5 {[%clk 0:00:50]}  Ke8 {[%clk 0:00:19]} 94. Bd2 {[%clk 0:00:50]}  Kf8 {[%clk 0:00:19]} 95. Bc1 {[%clk 0:00:50]}  Ke8 {[%clk 0:00:19]} 96. a7 {[%clk 0:00:50]}  Kf8 {[%clk 0:00:20]} 97. Kd7 {[%clk 0:00:50]}  Kf7 {[%clk 0:00:19]} 98. a8=R {[%clk 0:00:48]}  Kxf6 {[%clk 0:00:20]} 99. Ra1 {[%clk 0:00:48]}  Ke5 {[%clk 0:00:20]} 100. c7 {[%clk 0:00:48]}  Kd5 {[%clk 0:00:20]} 101. c8=R {[%clk 0:00:44]}  Ke5 {[%clk 0:00:20]} 102. Rh8 {[%clk 0:00:44]}  Kd4 {[%clk 0:00:20]} 103. Rh1 {[%clk 0:00:43]}  Kc3 {[%clk 0:00:20]} 104. Ke6 {[%clk 0:00:40]}  Kb4 {[%clk 0:00:20]} 105. d7 {[%clk 0:00:40]}  Kc3 {[%clk 0:00:21]} 106. d8=Q {[%clk 0:00:38]}  Kb4 {[%clk 0:00:21]} 107. Qd1 {[%clk 0:00:37]}  Kc3 {[%clk 0:00:21]} 108. Ke5 {[%clk 0:00:37]}  Kb4 {[%clk 0:00:21]} 109. Ke4 {[%clk 0:00:38]}  Kc5 {[%clk 0:00:21]} 110. Ke3 {[%clk 0:00:38]}  Kc6 {[%clk 0:00:21]} 111. Ke2 {[%clk 0:00:39]}  Kc7 {[%clk 0:00:21]} 112. Ke1 {[%clk 0:00:36]}  Kc6 {[%clk 0:00:21]} 113. Rh6+ {[%clk 0:00:36]}  Kc5 {[%clk 0:00:21]} 114. Rh5+ {[%clk 0:00:36]}  Kc6 {[%clk 0:00:22]} 115. Qd5+ {[%clk 0:00:36]}  Kc7 {[%clk 0:00:22]} 116. Rh7+ {[%clk 0:00:36]}  Kc8 {[%clk 0:00:21]} 117. Qg8# {[%clk 0:00:36]} 1-0


[Site "https://www.chess.com"]